[Event "ESP-ch U1700 2024"]
[Site "Albacete"]
[Date "2024.09.01"]
[Round "9.2"]
[White "Jimenez Fernandez, Alejandro"]
[Black "Caballero Sanchez, Francisco"]
[Result "1/2-1/2"]
[ECO "D05"]
[WhiteElo "1956"]
[BlackElo "1682"]
[Annotator "TA"]
[PlyCount "121"]
[EventDate "2024.08.27"]
[EventType "swiss"]
[EventCountry "ESP"]
[SourceTitle "playchess.com"]
[Source "ChessBase"]
[SourceQuality "1"]
[TimeControl "5400+30"]

{[%evp 13,121,14,14,17,26,-17,40,37,61,58,66,63,93,43,82,38,42,41,46,0,0,0,5,0,0,0,0,-15,50,56,50,56,60,63,120,105,104,110,117,45,29,40,45,0,0,0,0,0,0,0,0,0,0,0,0,0,0,0,0,0,0,0,0,0,0,0,0,0,0,0,0,0,0,0,0,0,7,0,0,0,0,0,0,0,0,0,0,0,0,0,0,0,0,0,0,0,0,0,0,0,0,0,0,0,0,0,8,0,8,8]} 1. Nf3 {[%emt 0:00:02]} d5 {[%emt 0:00:04]} 2. d4 {[%emt 0:01:13]} Nf6 {[%emt 0:00:02]} 3. e3 {[%emt 0:00:10]} e6 {[%emt 0:00:06]} 4. c4 {[%emt 0:00:26]} b6 {[%emt 0:02:01]} 5. Nc3 {[%emt 0:01:35]} Bd6 {[%emt 0:01:36]} 6. Bd3 {[%emt 0:05:04]} Nbd7 {[%emt 0:00:52]} 7. O-O {[%emt 0:01:48]} Bb7 {[%emt 0:00:54]} 8. cxd5 {[%emt 0:01:04]} exd5 {[%emt 0:00:06]} 9. Re1 {[%emt 0:00:34]} Ne4 {[%emt 0:00:52]} ({Black should try} 9... O-O $11) 10. Qc2 $14 {[%emt 0:07:59][%cal Oc3d5] Strongly threatening Nxd5! White is slightly better.} f5 {[%emt 0:01:02]} 11. Nb5 {[%emt 0:03:27]} O-O {[%emt 0:02:16]} 12. Nxd6 {[%emt 0:00:34]} Nxd6 {[%emt 0:00:08]} 13. Ne5 {[%emt 0:03:50]} ({Better is} 13. b4 $16) 13... g6 14. Nxd7 {[%emt 0:20:17]} Qxd7 {[%emt 0:07:20]} 15. Bd2 {[%emt 0:03:57]} Ne4 {[%emt 0:03:41]} 16. f3 {[%emt 0:01:33]} (16. Rac1 $1 $14) 16... Nxd2 $11 {[%emt 0:00:27]} 17. Qxd2 {[%emt 0:00:11]} Rfe8 {[%emt 0:02:09]} 18. Rac1 {[%emt 0:05:44]} a5 {[%emt 0:05:38]} 19. Qc2 {[%emt 0:01:32]} Re7 {[%emt 0:03:27]} 20. Re2 {[%emt 0:08:51]} Ba6 {[%emt 0:01:31]} ({Black should play} 20... Rc8 $11) 21. Bxa6 $14 {[%emt 0:00:28]} Rxa6 {[%emt 0:00:02]} 22. Qc6 {[%emt 0:03:29]} Qxc6 {[%emt 0:03:04]} 23. Rxc6 {[%emt 0:00:02][%mdl 4096] Endgame. KRR-KRR} Kf7 {[%emt 0:00:19]} (23... Ra8 $14) 24. Rec2 $16 {[%emt 0:00:13] White is more active.} Ra7 {[%emt 0:00:14]} 25. Kf2 {[%emt 0:00:09]} Ke8 {[%emt 0:01:07] [#]} 26. h3 (26. h4 $1 $16) 26... Kd7 $14 {[%emt 0:00:43]} 27. g4 {[%emt 0:09:17]} fxg4 $1 {[%emt 0:00:22]} 28. fxg4 {[%emt 0:01:21]} Re6 {[%emt 0:00:18] The position is equal.} 29. Rxe6 {[%emt 0:00:13]} Kxe6 $11 {[%emt 0:00:02] KR-KR} 30. Kf3 {[%emt 0:00:15]} Kd6 {[%emt 0:01:37]} 31. e4 {[%emt 0:05:52]} dxe4+ {[%emt 0:02:02]} 32. Kxe4 {[%emt 0:00:07]} Ra8 {[%emt 0:00:07]} 33. Rf2 {[%emt 0:00:17]} Re8+ {[%emt 0:00:30]} 34. Kd3 {[%emt 0:00:25]} Re7 {[%emt 0:03:04]} 35. Rf6+ {[%emt 0:02:01]} Kd5 {[%emt 0:02:03]} 36. Rf4 {[%emt 0:02:26]} Rd7 {[%emt 0:01:23]} 37. Rf2 {[%emt 0:03:51]} Re7 {[%emt 0:04:21]} 38. Rf8 {[%emt 0:01:45]} Rd7 {[%emt 0:01:27]} 39. h4 {[%emt 0:03:15]} c5 {[%emt 0:02:06]} 40. dxc5 {[%emt 0:00:37]} Kxc5+ {[%emt 0:00:20]} 41. Kc3 {[%emt 0:00:17]} Rc7 {[%emt 0:00:15]} 42. b3 {[%emt 0:03:54]} b5 {[%emt 0:01:29]} 43. Ra8 {[%emt 0:00:45]} Kb6+ {[%emt 0:01:08]} 44. Kd3 {[%emt 0:00:07]} Rc1 {[%emt 0:00:47]} 45. Rh8 {[%emt 0:00:28]} Rg1 {[%emt 0:00:43]} 46. Rxh7 {[%emt 0:00:25]} Rxg4 {[%emt 0:00:07]} 47. Rh6 {[%emt 0:00:19]} Kc5 {[%emt 0:00:37]} 48. h5 {[%emt 0:00:30]} gxh5 {[%emt 0:00:19]} 49. Rxh5+ {[%emt 0:00:01]} Kb4 {[%emt 0:00:27]} 50. Kc2 {[%emt 0:01:22]} a4 {[%emt 0:00:40]} 51. bxa4 {[%emt 0:00:45]} bxa4 {[%emt 0:00:47]} 52. Rh3 {[%emt 0:00:28]} a3 {[%emt 0:00:54]} 53. Rb3+ {[%emt 0:00:32]} Ka4 {[%emt 0:00:08]} 54. Rd3 {[%emt 0:00:17]} Rg2+ {[%emt 0:00:59]} 55. Rd2 {[%emt 0:00:33]} Rg4 {[%emt 0:03:33]} 56. Kc3 {[%emt 0:00:43]} Rb4 {[%emt 0:00:32]} 57. Rd8 {[%emt 0:00:40]} Rb5 {[%emt 0:00:49]} 58. Ra8+ {[%emt 0:00:11]} Ra5 {[%emt 0:00:49]} 59. Rb8 {[%emt 0:00:11]} Rb5 {[%emt 0:00:21]} 60. Rxb5 {[%emt 0:00:21]} Kxb5 {[%emt 0:00:06]} 61. Kb3 {Weighted Error Value: White=0.07 (flawless) /Black=0.08 (flawless) .  Mistake:       	White=3     	Black=3      Inaccurate:     	White=3     	Black=2      OK:         	White=29    	Black=16     Best:        	White=4     	Black=1      Strong:       	---       	Black=1} 1/2-1/2

[Event "ESP-ch U1700 2024"]
[Site "Albacete"]
[Date "2024.09.01"]
[Round "9.3"]
[White "Garcia-Munoz Arias, Diego"]
[Black "Airos Martorell, Ignacio"]
[Result "1-0"]
[ECO "C02"]
[WhiteElo "1696"]
[BlackElo "1650"]
[Annotator "NA RC COMBH"]
[PlyCount "71"]
[EventDate "2024.08.27"]
[EventType "swiss"]
[EventCountry "ESP"]
[SourceTitle "playchess.com"]
[Source "ChessBase"]
[SourceQuality "1"]
[TimeControl "5400+30"]

1. e4 {[%emt 0:00:27]} e6 {[%emt 0:00:05]} 2. d4 {[%emt 0:00:53]} d5 {[%emt 0:00:05]} 3. e5 {[%emt 0:00:22]} c5 {[%emt 0:00:24]} 4. c3 {[%emt 0:00:05]} Nc6 {[%emt 0:00:28]} 5. Nf3 {[%emt 0:00:21]} Qb6 {[%emt 0:00:35]} 6. Be2 {[%emt 0:02:21]} cxd4 {[%emt 0:00:52]} 7. cxd4 {[%emt 0:00:37]} Nge7 {[%emt 0:01:57]} 8. b3 {[%emt 0:01:25]} Nf5 {[%emt 0:00:31]} 9. Bb2 {[%emt 0:00:12]} Bb4+ {[%emt 0:00:02]} 10. Kf1 {[%emt 0:00:20]} Bd7 {[%emt 0:02:29]} 11. g4 {[%emt 0:05:00]} Nh6 {[%emt 0:02:58]} 12. a3 {[%emt 0:14:20]} Be7 {[%emt 0:01:37]} 13. Rg1 {[%emt 0:02:18]} f6 {[%emt 0:05:52]} 14. exf6 {[%emt 0:05:47]} gxf6 15. b4 O-O-O {[%emt 0:07:39]} 16. Nbd2 {[%emt 0:04:44]} Rhg8 {[%emt 0:04:48]} 17. h3 {[%emt 0:00:44]} Nf7 {[%emt 0:02:30]} 18. Nb3 {[%emt 0:00:34]} h5 {[%emt 0:00:51]} 19. Qd2 {[%emt 0:02:45]} hxg4 {[%emt 0:02:35]} 20. hxg4 {[%emt 0:00:16]} Ng5 {[%emt 0:01:55]} 21. b5 {[%emt 0:03:45]} Ne4 {[%emt 0:01:01]} 22. Qe1 {[%emt 0:00:16]} e5 {[%emt 0:01:39]} 23. bxc6 {[%emt 0:04:56]} Bxg4 {[%emt 0:00:35]} 24. cxb7+ {[%emt 0:01:11]} Kb8 {[%emt 0:00:40]} 25. Rxg4 {[%emt 0:06:24]} Rxg4 {[%emt 0:01:58]} 26. Na5 {[%emt 0:19:25]} Rh8 {[%emt 0:01:18]} 27. Ng1 {[%emt 0:00:13]} Qxb2 {[%emt 0:06:31]} 28. Bxg4 {[%emt 0:01:55]} Rg8 {[%emt 0:01:58]} 29. Bc8 {[%emt 0:01:17]} Nd2+ {[%emt 0:00:08]} 30. Qxd2 {[%emt 0:00:12]} Qb5+ {[%emt 0:02:40]} 31. Qe2 {[%emt 0:02:58]} Qxa5 {[%emt 0:01:14]} 32. dxe5 {[%emt 0:00:42]} fxe5 {[%emt 0:01:56]} 33. Qxe5+ {[%emt 0:00:53]} Qc7 {[%emt 0:00:06]} 34. Qxc7+ {[%emt 0:00:17]} Kxc7 {[%emt 0:00:07]} 35. Rc1+ {[%emt 0:00:21]} Kb8 {[%emt 0:01:23]} 36. Be6 {[%emt 0:00:38]} 1-0

[Event "ESP-ch U1700 2024"]
[Site "Albacete"]
[Date "2024.09.01"]
[Round "9.4"]
[White "Cerdeno Gil, Izan"]
[Black "Lopez Milian, Adela"]
[Result "1-0"]
[ECO "E09"]
[WhiteElo "1637"]
[BlackElo "1681"]
[Annotator "NA RC COMBH"]
[PlyCount "147"]
[EventDate "2024.08.27"]
[EventType "swiss"]
[EventCountry "ESP"]
[SourceTitle "playchess.com"]
[Source "ChessBase"]
[SourceQuality "1"]
[TimeControl "5400+30"]

1. d4 {[%emt 0:00:03]} d5 {[%emt 0:00:03]} 2. c4 {[%emt 0:00:09]} c6 {[%emt 0:00:58]} 3. Nf3 {[%emt 0:00:21]} Nf6 {[%emt 0:00:12]} 4. Qc2 {[%emt 0:00:20]} e6 {[%emt 0:00:48]} 5. g3 {[%emt 0:00:17]} Be7 {[%emt 0:01:08]} 6. Bg2 {[%emt 0:00:24]} O-O {[%emt 0:00:06]} 7. O-O {[%emt 0:00:41]} Nbd7 {[%emt 0:01:04]} 8. Nbd2 {[%emt 0:00:53]} b6 {[%emt 0:01:09]} 9. e4 {[%emt 0:00:50]} dxe4 {[%emt 0:12:31]} 10. Nxe4 {[%emt 0:00:46]} Bb7 {[%emt 0:00:34]} 11. Bf4 {[%emt 0:04:09]} Nxe4 {[%emt 0:06:55]} 12. Qxe4 {[%emt 0:00:12]} Nf6 {[%emt 0:00:05]} 13. Qe2 {[%emt 0:00:25]} Qc8 {[%emt 0:02:27]} 14. Rfd1 {[%emt 0:06:12]} c5 {[%emt 0:02:34]} 15. d5 {[%emt 0:00:38]} Re8 {[%emt 0:06:57]} 16. Bh3 {[%emt 0:05:27]} Bf8 {[%emt 0:06:23]} 17. Re1 {[%emt 0:06:21]} Nxd5 {[%emt 0:12:13]} 18. cxd5 {[%emt 0:01:06]} Bxd5 {[%emt 0:00:01]} 19. Bg2 {[%emt 0:03:03]} Qb7 {[%emt 0:00:34]} 20. Nh4 {[%emt 0:06:01]} Qc6 {[%emt 0:06:48]} 21. Nf3 f6 {[%emt 0:01:04]} 22. Rac1 {[%emt 0:09:38]} Qb7 23. b3 {[%emt 0:03:34]} Rac8 {[%emt 0:03:59]} 24. Bd2 {[%emt 0:01:32]} g5 {[%emt 0:05:49]} 25. Bc3 {[%emt 0:03:05]} Bg7 {[%emt 0:00:40]} 26. Red1 {[%emt 0:00:27]} a6 {[%emt 0:02:02]} 27. Ne1 {[%emt 0:00:54]} b5 {[%emt 0:00:48]} 28. Bxd5 {[%emt 0:01:45]} exd5 {[%emt 0:00:10]} 29. Qf3 {[%emt 0:00:17]} Rcd8 {[%emt 0:04:19]} 30. Ba5 {[%emt 0:00:29]} g4 {[%emt 0:09:25]} 31. Qxg4 {[%emt 0:01:48]} Rc8 {[%emt 0:01:31]} 32. Qf3 {[%emt 0:01:23]} Re4 {[%emt 0:00:19]} 33. Nd3 {[%emt 0:02:26]} c4 {[%emt 0:01:49]} 34. Nf4 {[%emt 0:00:47]} d4 {[%emt 0:01:33]} 35. Kg2 {[%emt 0:00:32]} d3 {[%emt 0:00:53]} 36. Rxd3 {[%emt 0:00:38]} f5 {[%emt 0:04:41]} 37. Re3 {[%emt 0:02:07]} Bd4 {[%emt 0:01:31]} 38. Rxe4 {[%emt 0:02:29]} fxe4 {[%emt 0:00:19]} 39. Qg4+ {[%emt 0:00:10]} Kh8 {[%emt 0:00:10]} 40. Bc3 {[%emt 0:00:25]} Bxc3 {[%emt 0:01:11]} 41. Rxc3 {[%emt 0:00:04]} Rg8 {[%emt 0:01:43]} 42. Qf5 {[%emt 0:00:19]} e3+ {[%emt 0:01:39]} 43. Qd5 {[%emt 0:00:17]} Qxd5+ {[%emt 0:00:36]} 44. Nxd5 {[%emt 0:00:11]} e2 {[%emt 0:00:07]} 45. Re3 {[%emt 0:00:11]} Rd8 {[%emt 0:01:03]} 46. bxc4 {[%emt 0:00:14]} bxc4 {[%emt 0:00:14]} 47. Nc3 {[%emt 0:00:06]} Rd3 {[%emt 0:01:07]} 48. Nxe2 {[%emt 0:00:09]} Rd2 {[%emt 0:00:55]} 49. Kf3 {[%emt 0:01:07]} Rxa2 {[%emt 0:00:14]} 50. Nc3 {[%emt 0:00:18]} Rc2 {[%emt 0:00:03]} 51. Nd5 {[%emt 0:00:42]} Rd2 {[%emt 0:00:31]} 52. Nb6 {[%emt 0:00:53]} Rc2 {[%emt 0:00:26]} 53. Ra3 {[%emt 0:00:11]} c3 {[%emt 0:00:21]} 54. Nd5 {[%emt 0:00:07]} Rd2 {[%emt 0:00:48]} 55. Nxc3 {[%emt 0:00:12]} Rd3+ {[%emt 0:00:04]} 56. Ke2 {[%emt 0:00:11]} Rd6 {[%emt 0:00:04]} 57. f4 {[%emt 0:00:20]} Rc6 {[%emt 0:00:23]} 58. Kf3 {[%emt 0:00:19]} Kg7 {[%emt 0:00:15]} 59. Nd5 {[%emt 0:00:18]} Rc5 {[%emt 0:01:24]} 60. Ne3 {[%emt 0:00:26]} a5 {[%emt 0:00:26]} 61. Ke4 {[%emt 0:00:09]} Kf6 {[%emt 0:00:58]} 62. Ra4 {[%emt 0:00:34]} Rh5 {[%emt 0:00:45]} 63. Nd5+ {[%emt 0:00:16]} Ke6 {[%emt 0:00:18]} 64. Rxa5 {[%emt 0:00:24]} Rxh2 {[%emt 0:00:11]} 65. Ra6+ {[%emt 0:00:14]} Kf7 {[%emt 0:00:13]} 66. g4 {[%emt 0:00:11]} Re2+ {[%emt 0:00:47]} 67. Kf5 {[%emt 0:00:12]} Rc2 {[%emt 0:00:54]} 68. Ra7+ {[%emt 0:00:31]} Kg8 {[%emt 0:00:25]} 69. Rc7 {[%emt 0:00:27]} Ra2 {[%emt 0:00:33]} 70. Nf6+ {[%emt 0:00:38]} Kf8 {[%emt 0:01:03]} 71. Nxh7+ {[%emt 0:00:12]} Kg8 {[%emt 0:00:38]} 72. Kg6 {[%emt 0:00:16]} Ra6+ {[%emt 0:00:08]} 73. Nf6+ {[%emt 0:00:11]} Kf8 {[%emt 0:00:13]} 74. Rf7# 1-0

[Event "ESP-ch U1700 2024"]
[Site "Albacete"]
[Date "2024.09.01"]
[Round "9.5"]
[White "Solanilla Olcese, Ada"]
[Black "Perez Fernandez, Alvaro"]
[Result "1/2-1/2"]
[ECO "B27"]
[WhiteElo "1668"]
[BlackElo "1638"]
[Annotator "NA RC COMBH"]
[PlyCount "93"]
[EventDate "2024.08.27"]
[EventType "swiss"]
[EventCountry "ESP"]
[SourceTitle "playchess.com"]
[Source "ChessBase"]
[SourceQuality "1"]
[TimeControl "5400+30"]

1. e4 {[%emt 0:00:03]} c5 {[%emt 0:00:56]} 2. Nf3 {[%emt 0:00:24]} g6 {[%emt 0:00:43]} 3. d4 {[%emt 0:00:37]} cxd4 {[%emt 0:01:03]} 4. Qxd4 {[%emt 0:00:23]} Nf6 {[%emt 0:00:27]} 5. Nc3 {[%emt 0:01:05]} Nc6 {[%emt 0:03:14]} 6. Qa4 {[%emt 0:01:12]} d6 {[%emt 0:06:01]} 7. e5 {[%emt 0:02:33]} Ng4 {[%emt 0:01:20]} 8. exd6 {[%emt 0:04:26]} Qxd6 {[%emt 0:01:30]} 9. Bf4 {[%emt 0:22:06]} Qe6+ {[%emt 0:09:06]} 10. Be2 {[%emt 0:05:08]} a6 {[%emt 0:05:41]} 11. Rd1 {[%emt 0:06:22]} Bd7 {[%emt 0:03:42]} 12. Nd5 {[%emt 0:02:26]} Rc8 {[%emt 0:02:04]} 13. Nc7+ {[%emt 0:03:13]} Rxc7 {[%emt 0:00:02]} 14. Bxc7 {[%emt 0:00:09]} Bg7 {[%emt 0:01:34]} 15. Qb3 {[%emt 0:05:32]} Qxb3 {[%emt 0:03:15]} 16. cxb3 {[%emt 0:01:58]} Bxb2 {[%emt 0:01:26]} 17. O-O {[%emt 0:03:16]} Bg7 {[%emt 0:05:12]} 18. Bc4 {[%emt 0:02:55]} Nf6 {[%emt 0:02:50]} 19. Ne5 {[%emt 0:02:19]} Nxe5 {[%emt 0:09:30]} 20. Bxe5 {[%emt 0:00:33]} Bc6 {[%emt 0:02:44]} 21. Rfe1 {[%emt 0:04:56]} O-O {[%emt 0:03:38]} 22. Bc7 {[%emt 0:02:44]} e6 {[%emt 0:05:17]} 23. Rd8 {[%emt 0:02:47]} Nd5 {[%emt 0:04:43]} 24. Rxf8+ {[%emt 0:00:52]} Bxf8 {[%emt 0:00:57]} 25. Bxd5 {[%emt 0:01:55]} Bxd5 {[%emt 0:01:15]} 26. Bb6 {[%emt 0:01:01]} Ba3 {[%emt 0:05:17]} 27. Re2 {[%emt 0:01:41]} Kg7 {[%emt 0:01:38]} 28. Rc2 {[%emt 0:01:20]} Bc6 {[%emt 0:00:20]} 29. Bc5 {[%emt 0:00:51]} Bxc5 {[%emt 0:00:36]} 30. Rxc5 {[%emt 0:00:06]} Kf6 {[%emt 0:00:25]} 31. Kf1 {[%emt 0:05:00]} Ke7 {[%emt 0:03:50]} 32. g3 {[%emt 0:01:36]} h5 {[%emt 0:01:01]} 33. Ke2 {[%emt 0:00:54]} Kd6 {[%emt 0:00:25]} 34. b4 {[%emt 0:02:08]} b6 {[%emt 0:03:53]} 35. Rc3 {[%emt 0:00:33]} e5 {[%emt 0:01:53]} 36. Ke3 {[%emt 0:00:39]} Bb5 {[%emt 0:01:47]} 37. Rc8 {[%emt 0:00:56]} Bc6 {[%emt 0:01:07]} 38. Rb8 {[%emt 0:03:24]} Kc7 {[%emt 0:00:49]} 39. Rf8 {[%emt 0:00:12]} Bd5 {[%emt 0:00:10]} 40. Re8 {[%emt 0:00:45]} Bxa2 {[%emt 0:02:08]} 41. Rxe5 {[%emt 0:00:09]} Be6 {[%emt 0:00:24]} 42. Kd4 {[%emt 0:00:21]} Kd6 {[%emt 0:01:02]} 43. Re1 {[%emt 0:01:39]} Kc6 {[%emt 0:00:38]} 44. Re5 {[%emt 0:00:37]} Kd6 45. Re1 Kc6 46. Ke5 Kb5 47. Kd4 1/2-1/2

[Event "ESP-ch U1700 2024"]
[Site "Albacete"]
[Date "2024.09.01"]
[Round "9.6"]
[White "Varela Cano, Hugo"]
[Black "Quiros Florea, Rafael-Santiago"]
[Result "1-0"]
[ECO "B92"]
[WhiteElo "1691"]
[BlackElo "1666"]
[Annotator "NA RC COMBH"]
[PlyCount "57"]
[EventDate "2024.08.27"]
[EventType "swiss"]
[EventCountry "ESP"]
[SourceTitle "playchess.com"]
[Source "ChessBase"]
[SourceQuality "1"]
[TimeControl "5400+30"]

1. e4 c5 {[%emt 0:00:06]} 2. Nf3 {[%emt 0:00:25]} d6 {[%emt 0:00:12]} 3. d4 {[%emt 0:00:41]} cxd4 {[%emt 0:00:09]} 4. Nxd4 {[%emt 0:00:06]} Nf6 {[%emt 0:00:10]} 5. Nc3 {[%emt 0:01:56]} a6 {[%emt 0:00:55]} 6. Be2 {[%emt 0:11:08]} e5 {[%emt 0:02:52]} 7. Nb3 {[%emt 0:04:41]} Be6 {[%emt 0:02:45]} 8. Bg5 {[%emt 0:09:40]} Be7 {[%emt 0:02:07]} 9. Bxf6 {[%emt 0:04:08]} Bxf6 {[%emt 0:00:18]} 10. Nd5 {[%emt 0:01:21]} Nd7 {[%emt 0:03:07]} 11. O-O {[%emt 0:10:38]} O-O {[%emt 0:02:17]} 12. c4 {[%emt 0:05:39]} Bg5 {[%emt 0:05:00]} 13. Qc2 {[%emt 0:12:05]} Rc8 {[%emt 0:03:59]} 14. Nc1 {[%emt 0:05:06]} b5 {[%emt 0:03:50]} 15. b3 {[%emt 0:02:49]} Bxd5 {[%emt 0:03:00]} 16. exd5 {[%emt 0:00:13]} Nb6 {[%emt 0:00:35]} 17. Rd1 {[%emt 0:05:33]} bxc4 {[%emt 0:00:37]} 18. bxc4 {[%emt 0:01:47]} Nxc4 {[%emt 0:01:22]} 19. Bxc4 {[%emt 0:00:19]} Qc7 {[%emt 0:00:07]} 20. Qf5 {[%emt 0:02:14]} f6 {[%emt 0:03:41]} 21. Bxa6 {[%emt 0:03:45]} Ra8 {[%emt 0:01:11]} 22. Bb5 {[%emt 0:02:55]} Rfc8 {[%emt 0:00:42]} 23. Bc6 {[%emt 0:00:55]} Rab8 {[%emt 0:00:57]} 24. Nb3 {[%emt 0:00:27]} Qa7 {[%emt 0:01:35]} 25. Nd2 {[%emt 0:01:46]} Rc7 {[%emt 0:02:20]} 26. Ne4 {[%emt 0:03:51]} Rb2 {[%emt 0:00:29]} 27. Nxd6 {[%emt 0:01:42]} Bf4 {[%emt 0:00:56]} 28. Qe6+ {[%emt 0:01:15]} Rf7 {[%emt 0:00:46]} 29. Qxf7+ {[%emt 0:00:15]} 1-0

[Event "ESP-ch U1700 2024"]
[Site "Albacete"]
[Date "2024.09.01"]
[Round "9.7"]
[White "Muniz Otero, Lucas"]
[Black "El Ammari Rovira, Sara"]
[Result "1-0"]
[ECO "C44"]
[WhiteElo "1605"]
[BlackElo "1652"]
[Annotator "NA RC COMBH"]
[PlyCount "85"]
[EventDate "2024.08.27"]
[EventType "swiss"]
[EventCountry "ESP"]
[SourceTitle "playchess.com"]
[Source "ChessBase"]
[SourceQuality "1"]
[TimeControl "5400+30"]

1. e4 {[%emt 0:00:03]} e5 {[%emt 0:00:08]} 2. Nf3 {[%emt 0:00:04]} Nc6 {[%emt 0:00:06]} 3. d4 {[%emt 0:00:10]} exd4 {[%emt 0:00:14]} 4. Bc4 {[%emt 0:00:04]} Qe7 {[%emt 0:01:04]} 5. O-O {[%emt 0:01:48]} d6 {[%emt 0:01:31]} 6. Nxd4 {[%emt 0:02:19]} Bd7 {[%emt 0:02:45]} 7. c3 {[%emt 0:03:23]} Nf6 {[%emt 0:02:02]} 8. Re1 {[%emt 0:01:50]} g6 {[%emt 0:06:26]} 9. Bf4 {[%emt 0:04:43]} Ne5 {[%emt 0:03:11]} 10. Bb5 {[%emt 0:03:52]} Bxb5 {[%emt 0:01:27]} 11. Nxb5 {[%emt 0:00:10]} a6 {[%emt 0:01:30]} 12. Nd4 {[%emt 0:00:12]} Bg7 {[%emt 0:00:53]} 13. Qe2 {[%emt 0:04:16]} O-O {[%emt 0:01:43]} 14. Nd2 {[%emt 0:02:04]} Nh5 {[%emt 0:02:36]} 15. Be3 {[%emt 0:03:41]} c5 {[%emt 0:02:02]} 16. N4f3 {[%emt 0:01:18]} Nxf3+ {[%emt 0:01:27]} 17. Qxf3 {[%emt 0:02:12]} Qc7 {[%emt 0:03:01]} 18. Rad1 {[%emt 0:03:52]} b5 {[%emt 0:01:29]} 19. Qe2 {[%emt 0:02:23]} Rfe8 {[%emt 0:02:18]} 20. Qd3 {[%emt 0:07:20]} c4 {[%emt 0:06:51]} 21. Qc2 {[%emt 0:00:51]} Nf6 {[%emt 0:02:58]} 22. Bf4 {[%emt 0:06:41]} Nh5 {[%emt 0:02:24]} 23. Be3 {[%emt 0:00:39]} Qc6 {[%emt 0:02:00]} 24. Bd4 {[%emt 0:03:38]} Nf4 {[%emt 0:02:37]} 25. Nf3 {[%emt 0:03:59]} Be5 {[%emt 0:04:03]} 26. Re3 {[%emt 0:06:35]} Nd3 {[%emt 0:02:15]} 27. Ne1 {[%emt 0:00:42]} Bxd4 {[%emt 0:01:59]} 28. cxd4 {[%emt 0:00:17]} Nxe1 {[%emt 0:01:38]} 29. Rdxe1 {[%emt 0:02:47]} d5 {[%emt 0:01:26]} 30. e5 {[%emt 0:02:59]} Re7 {[%emt 0:04:10]} 31. Kf1 {[%emt 0:02:31]} Rae8 {[%emt 0:00:56]} 32. Qd2 {[%emt 0:00:55]} Qe6 {[%emt 0:02:26]} 33. Qa5 {[%emt 0:03:55]} Rb7 {[%emt 0:03:05]} 34. Ra3 {[%emt 0:03:22]} Ra8 {[%emt 0:02:21]} 35. Qb4 {[%emt 0:01:33]} Qb6 {[%emt 0:03:13]} 36. Qd2 {[%emt 0:02:46]} b4 {[%emt 0:02:40]} 37. Rh3 {[%emt 0:00:21]} Rf8 {[%emt 0:02:04]} 38. Qh6 {[%emt 0:04:38]} f6 {[%emt 0:00:25]} 39. exf6 {[%emt 0:01:15]} Rxf6 {[%emt 0:00:20]} 40. Re8+ {[%emt 0:00:20]} Rf8 41. Re1 Qxd4 42. Re7 Qf6 43. Qxh7# 1-0

[Event "ESP-ch U1700 2024"]
[Site "Albacete"]
[Date "2024.09.01"]
[Round "9.8"]
[White "Grande Gonzalez, Julen"]
[Black "Trujillo Torres, Alvaro"]
[Result "1-0"]
[ECO "D35"]
[WhiteElo "1692"]
[BlackElo "1595"]
[Annotator "NA RC COMBH"]
[PlyCount "67"]
[EventDate "2024.08.27"]
[EventType "swiss"]
[EventCountry "ESP"]
[SourceTitle "playchess.com"]
[Source "ChessBase"]
[SourceQuality "1"]
[TimeControl "5400+30"]

1. d4 {[%emt 0:00:02]} d5 {[%emt 0:00:06]} 2. c4 {[%emt 0:00:04]} e6 {[%emt 0:00:09]} 3. Nc3 {[%emt 0:00:03]} Nf6 {[%emt 0:00:07]} 4. cxd5 {[%emt 0:00:08]} exd5 {[%emt 0:00:10]} 5. Bg5 {[%emt 0:00:41]} c6 {[%emt 0:00:22]} 6. e3 {[%emt 0:00:03]} h6 {[%emt 0:00:14]} 7. Bh4 {[%emt 0:00:26]} Be7 {[%emt 0:00:13]} 8. Bd3 {[%emt 0:00:03]} O-O {[%emt 0:00:24]} 9. Nf3 {[%emt 0:00:02]} Ne4 {[%emt 0:03:12]} 10. Bg3 {[%emt 0:05:24]} Bb4 {[%emt 0:13:50]} 11. Qb3 {[%emt 0:12:51]} Qa5 {[%emt 0:16:22]} 12. Rc1 {[%emt 0:01:20]} Nxg3 {[%emt 0:02:51]} 13. hxg3 {[%emt 0:05:00]} Bxc3+ {[%emt 0:09:01]} 14. bxc3 {[%emt 0:00:16]} Nd7 {[%emt 0:00:08]} 15. Qc2 {[%emt 0:01:12]} Nf6 {[%emt 0:00:27]} 16. O-O {[%emt 0:09:43]} Re8 {[%emt 0:01:48]} 17. c4 {[%emt 0:03:19]} Ne4 {[%emt 0:07:00]} 18. cxd5 {[%emt 0:01:41]} cxd5 {[%emt 0:00:34]} 19. Ne5 {[%emt 0:01:15]} Nd6 {[%emt 0:13:02]} 20. Qb3 {[%emt 0:03:09]} Be6 {[%emt 0:02:48]} 21. f4 {[%emt 0:06:14]} f6 {[%emt 0:11:13]} 22. Nf3 {[%emt 0:10:29]} b6 {[%emt 0:06:05]} 23. Nh4 {[%emt 0:04:27]} Ne4 {[%emt 0:01:52]} 24. Qc2 {[%emt 0:02:31]} Rac8 {[%emt 0:01:18]} 25. Qd1 {[%emt 0:06:08]} Rxc1 {[%emt 0:01:04]} 26. Qxc1 {[%emt 0:00:15]} Nxg3 {[%emt 0:02:09]} 27. Qc6 {[%emt 0:01:47]} Bf7 {[%emt 0:02:09]} 28. Rf3 {[%emt 0:05:34]} Qe1+ {[%emt 0:00:59]} 29. Kh2 Ne4 {[%emt 0:02:57]} 30. Nf5 {[%emt 0:02:11]} Bg6 {[%emt 0:01:41]} 31. Bxe4 {[%emt 0:04:58]} dxe4 {[%emt 0:00:40]} 32. Rg3 {[%emt 0:00:07]} Bxf5 {[%emt 0:00:40]} 33. Qxe8+ {[%emt 0:00:11]} Kh7 {[%emt 0:00:10]} 34. Qf7 {[%emt 0:00:30]} 1-0

[Event "ESP-ch U1700 2024"]
[Site "Albacete"]
[Date "2024.09.01"]
[Round "9.9"]
[White "Garcia Sahuquillo, Marcos Antonio"]
[Black "Fernandez Zaldivar, Antonio Manuel"]
[Result "1/2-1/2"]
[ECO "A46"]
[WhiteElo "1690"]
[BlackElo "1649"]
[Annotator "NA RC COMBH"]
[PlyCount "88"]
[EventDate "2024.08.27"]
[EventType "swiss"]
[EventCountry "ESP"]
[SourceTitle "playchess.com"]
[Source "ChessBase"]
[SourceQuality "1"]
[TimeControl "5400+30"]

1. d4 Nf6 2. Nf3 e6 3. g3 b6 4. Bg2 Bb7 5. O-O Be7 6. c4 O-O 7. Nbd2 c5 8. e3 d5 9. cxd5 Bxd5 10. Qc2 Na6 11. a3 Rc8 12. Qd3 Nc7 13. b3 cxd4 14. exd4 a6 15. Bb2 b5 16. Rac1 Nce8 17. Rxc8 Qxc8 18. Rc1 Qb7 19. Ne1 Nd6 20. Bxd5 Nxd5 21. Ne4 Nxe4 22. Qxe4 Bf6 23. Nd3 Rc8 24. Nc5 Qa7 25. b4 h6 26. h3 a5 27. Ra1 Qb6 28. Nd7 Qd8 29. Nxf6+ Qxf6 30. bxa5 Qd8 31. a6 Qa5 32. Qd3 Qxa6 33. a4 Rc4 34. axb5 Qc8 35. Ra8 Qxa8 36. Qxc4 Qb8 37. Qc6 Qa7 38. Qc5 Qa5 39. Ba3 Qe1+ 40. Kg2 Qe4+ 41. Kf1 Qd3+ 42. Kg1 Qb1+ 43. Bc1 Kh7 44. Kg2 Qe4+ 1/2-1/2